bitfinex-derivatives/quotes_BTCF0:USTF0_20260221
["timestamp","ask_amount","ask_price","bid_price","bid_amount"]
[1771702558022,0.014572,68643.0,68634.0,0.014574]
[1771702558223,0.20904842,68642.0,68634.0,0.014574]
[1771702558421,0.014572,68643.0,68634.0,0.014574]
[1771702558620,0.20904771,68642.0,68634.0,0.014574]
[1771702558819,0.014572,68641.0,68631.0,0.014574]
[1771702559021,0.014573,68640.0,68631.0,0.014574]
[1771702559528,0.014573,68639.0,68630.0,0.014575]
[1771702560429,0.014573,68640.0,68631.0,0.014575]
[1771702561825,0.014573,68640.0,68629.0,0.014575]
[1771702562834,0.014573,68639.0,68630.0,0.014575]
[1771702566839,0.014573,68640.0,68631.0,0.014575]
[1771702568436,0.014573,68639.0,68627.0,0.014575]
[1771702568741,0.014573,68638.0,68629.0,0.014575]
[1771702570234,0.014573,68639.0,68627.0,0.014575]
[1771702570446,0.014573,68638.0,68628.0,0.014575]
[1771702570643,0.014573,68638.0,68629.0,0.014575]
[1771702572345,0.014573,68637.0,68629.0,0.014575]
[1771702573549,0.014573,68637.0,68629.0,0.015575]
[1771702573750,0.014573,68638.0,68629.0,0.03015]
[1771702574545,0.014571,68647.0,68629.0,0.19592728]
[1771702574751,0.014572,68645.0,68635.0,0.014574]
[1771702574940,0.014572,68643.0,68634.0,0.014574]
[1771702576454,0.014572,68644.0,68634.0,0.014574]
[1771702578051,0.014571,68648.0,68638.0,0.00088]
[1771702578243,3.9e-07,68647.0,68644.0,0.014572]
[1771702578449,0.01457,68655.0,68643.0,0.014572]
[1771702578651,0.01457,68653.0,68643.0,0.014572]
[1771702578850,0.01457,68652.0,68642.0,0.014572]
[1771702579056,0.01457,68652.0,68641.0,0.014572]
[1771702579357,0.65834825,68661.0,68639.0,0.19492728]
[1771702579358,0.37886372,68661.0,68639.0,0.19492728]
[1771702579549,0.014568,68660.0,68649.0,0.014571]
[1771702579748,0.014569,68659.0,68649.0,0.014571]
[1771702580257,0.014569,68658.0,68648.0,0.014571]
[1771702580963,0.014568,68660.0,68650.0,0.01457]
[1771702581158,0.014568,68660.0,68649.0,0.014571]
[1771702581356,0.014568,68660.0,68650.0,0.01457]
[1771702581556,0.014569,68659.0,68650.0,0.01457]
[1771702581759,0.014569,68658.0,68649.0,0.014571]
[1771702583760,0.014569,68658.0,68650.0,0.01457]
[1771702584153,0.014569,68657.0,68649.0,0.014571]
[1771702585660,0.014567,68667.0,68650.0,0.20949728]
[1771702585859,0.014569,68659.0,68652.0,0.01457]
[1771702586055,0.014568,68664.0,68652.0,0.01457]
[1771702586056,0.014568,68661.0,68652.0,0.01457]
[1771702587163,0.014568,68662.0,68652.0,0.01557]
[1771702587867,0.014568,68664.0,68653.0,0.01457]
[1771702588162,0.014568,68663.0,68653.0,0.01457]
[1771702588558,0.029136,68663.0,68653.0,0.01457]
[1771702588862,0.014568,68662.0,68652.0,0.01457]
[1771702590064,0.014568,68662.0,68656.0,0.0008]
[1771702590266,0.014568,68662.0,68652.0,0.01457]
[1771702591763,0.014568,68662.0,68653.0,0.01457]
[1771702591967,0.014568,68662.0,68652.0,0.01457]
[1771702593169,0.029136,68662.0,68652.0,0.01457]
[1771702593964,0.014567,68666.0,68653.0,0.20949728]
[1771702594269,0.014567,68666.0,68655.0,0.014569]
[1771702594569,0.014567,68666.0,68656.0,0.014569]
[1771702595068,0.014567,68666.0,68653.0,0.19492728]
[1771702595069,0.014565,68675.0,68664.0,0.014567]
[1771702595266,0.014565,68674.0,68665.0,0.014567]
[1771702595770,0.014565,68674.0,68664.0,0.014567]
[1771702595972,0.014565,68676.0,68665.0,0.014567]
[1771702596474,0.014565,68675.0,68665.0,0.014567]
[1771702598871,0.014566,68674.0,68660.0,0.014568]
[1771702599076,0.02913,68676.0,68665.0,0.014567]
[1771702599370,0.014565,68675.0,68665.0,0.014567]
[1771702601170,0.014565,68677.0,68665.0,0.014567]
[1771702601367,0.20223996,68676.0,68664.0,0.014568]
[1771702601572,0.014565,68677.0,68664.0,0.014568]
[1771702601775,0.20223996,68676.0,68664.0,0.014568]
[1771702601972,0.014566,68674.0,68664.0,0.014568]
[1771702602575,0.014565,68675.0,68665.0,0.014567]
[1771702603278,0.014565,68675.0,68665.0,0.029134]
[1771702603477,0.014565,68675.0,68665.0,0.014567]
[1771702603674,0.015292,68681.0,68670.0,0.014566]
[1771702603972,0.21684755,68680.0,68670.0,0.014566]
[1771702604180,0.014564,68679.0,68670.0,0.014566]
[1771702605083,0.014564,68679.0,68669.0,0.014566]
[1771702609780,0.015292,68681.0,68668.0,0.014567]
[1771702609980,0.014564,68679.0,68668.0,0.014567]
[1771702610182,0.014565,68678.0,68668.0,0.014567]
[1771702612983,0.014565,68678.0,68667.0,0.014567]
[1771702613286,0.014565,68678.0,68668.0,0.014567]
[1771702614680,0.014564,68679.0,68668.0,0.014567]
[1771702615282,0.014564,68679.0,68669.0,0.014566]
[1771702622107,0.000728,68681.0,68671.0,0.014566]
[1771702622296,0.014563,68686.0,68675.0,0.014565]
[1771702622497,0.20164,68685.0,68675.0,0.014565]
[1771702622694,0.014563,68686.0,68675.0,0.014565]
[1771702622907,0.20164,68685.0,68675.0,0.014565]
[1771702623095,0.014563,68685.0,68675.0,0.014565]
[1771702623295,0.014563,68685.0,68674.0,0.014565]
[1771702624104,0.201752,68684.0,68676.0,0.014565]
[1771702624304,0.014563,68686.0,68676.0,0.014565]
[1771702624507,0.20174459,68685.0,68676.0,0.014565]
[1771702624704,0.46636,68702.0,68676.0,0.014565]
[1771702625013,0.014561,68693.0,68684.0,0.014563]
[1771702625204,0.014561,68694.0,68685.0,0.014563]
[1771702625399,0.014561,68693.0,68684.0,0.014563]
[1771702626106,0.014562,68692.0,68684.0,0.014563]
[1771702626304,0.014561,68693.0,68683.0,0.014563]
[1771702627207,0.45136191,68710.0,68684.0,0.014563]
[1771702627508,0.20157596,68704.0,68688.0,0.014562]
[1771702627704,0.20157596,68703.0,68687.0,0.014563]
[1771702627902,0.30794992,68710.0,68690.0,0.014562]
[1771702627903,0.20157596,68702.0,68690.0,0.014562]
[1771702628204,0.20157596,68701.0,68690.0,0.014562]
[1771702628411,0.05660333,68710.0,68689.0,0.014562]
[1771702628613,0.20148068,68709.0,68688.0,0.014562]
[1771702628814,0.20148068,68708.0,68688.0,0.014562]
[1771702629110,0.20148068,68707.0,68687.0,0.014563]
[1771702629314,0.20148068,68706.0,68687.0,0.014563]
[1771702629503,0.20148068,68705.0,68686.0,0.014563]
[1771702629708,0.20148068,68704.0,68685.0,0.22904474]
[1771702629911,0.20148068,68703.0,68685.0,0.22904474]
[1771702630111,0.20148068,68702.0,68685.0,0.22904474]
[1771702630307,0.05660333,68710.0,68685.0,0.22904474]
[1771702630511,0.20139374,68709.0,68685.0,0.22904474]
[1771702630709,0.20139374,68708.0,68685.0,0.21448174]
[1771702630905,0.20139374,68707.0,68685.0,0.21448174]
[1771702631107,0.20139374,68706.0,68685.0,0.21448174]
[1771702631307,0.20139374,68705.0,68685.0,0.21448174]
[1771702631610,0.20139374,68704.0,68685.0,0.21448174]
[1771702631800,0.05660333,68710.0,68685.0,0.21448174]
[1771702632005,0.05660333,68710.0,68673.0,0.014566]
[1771702632006,0.03602992,68708.0,68678.0,0.1939487]
[1771702632208,0.05660333,68700.0,68678.0,0.1939487]
[1771702633915,0.03602992,68706.0,68678.0,0.1939487]
[1771702634106,0.20132133,68705.0,68678.0,0.1939487]
[1771702634306,0.20132133,68704.0,68678.0,0.1939487]
[1771702634502,0.20132133,68703.0,68678.0,0.1939487]
[1771702634716,0.03602992,68706.0,68678.0,0.1939487]
[1771702634913,0.20130087,68705.0,68678.0,0.1939487]
[1771702635116,0.20130087,68704.0,68678.0,0.1939487]
[1771702635415,0.20130087,68703.0,68678.0,0.1939487]
[1771702635616,0.03702992,68706.0,68678.0,0.1939487]
[1771702635821,0.20128328,68705.0,68678.0,0.1939487]
[1771702636011,0.05660333,68700.0,68678.0,0.1939487]
[1771702637512,0.20128251,68699.0,68678.0,0.1939487]
[1771702637717,0.20128251,68698.0,68678.0,0.1939487]
[1771702637919,0.03449459,68704.0,68678.0,0.1939487]
[1771702638121,0.20128224,68703.0,68678.0,0.1939487]
[1771702638321,0.20128224,68702.0,68678.0,0.1939487]
[1771702638522,0.20128224,68701.0,68678.0,0.1939487]
[1771702638822,0.20128224,68700.0,68678.0,0.1939487]
[1771702639024,0.20128224,68699.0,68678.0,0.1939487]
[1771702639222,0.20128224,68698.0,68678.0,0.1939487]
[1771702639417,0.001,68700.0,68678.0,0.1939487]
[1771702639721,0.20129107,68699.0,68678.0,0.1939487]
[1771702639918,0.20129107,68698.0,68678.0,0.1939487]
[1771702640122,0.001,68700.0,68678.0,0.1939487]
[1771702640323,0.20130155,68699.0,68678.0,0.1939487]
[1771702640522,0.20130155,68698.0,68678.0,0.1939487]
[1771702640725,0.001,68700.0,68678.0,0.1939487]
[1771702640925,0.20130156,68699.0,68678.0,0.1939487]
[1771702641125,0.20130156,68698.0,68678.0,0.1939487]
[1771702641428,0.05660333,68700.0,68678.0,0.1939487]
[1771702641626,0.20131606,68699.0,68678.0,0.1939487]
[1771702641926,0.20131606,68698.0,68678.0,0.1939487]
[1771702642128,0.05660333,68700.0,68678.0,0.1939487]
[1771702642327,0.20133495,68699.0,68678.0,0.1939487]
[1771702642624,0.20133495,68698.0,68678.0,0.1939487]
[1771702642925,0.05660333,68700.0,68678.0,0.1939487]
[1771702643123,0.20133495,68699.0,68678.0,0.1939487]
[1771702643324,0.20133495,68698.0,68678.0,0.1939487]
[1771702643523,0.05660333,68700.0,68678.0,0.1939487]
[1771702643724,0.20135901,68699.0,68678.0,0.1939487]
[1771702643929,0.20135901,68698.0,68678.0,0.1939487]
[1771702644127,0.05760333,68700.0,68678.0,0.1939487]
[1771702644325,0.2013883,68699.0,68678.0,0.1939487]
[1771702644628,0.2013883,68698.0,68678.0,0.1939487]
[1771702644830,0.2013883,68697.0,68678.0,0.1939487]
[1771702645126,0.05760333,68700.0,68678.0,0.1939487]
[1771702645327,0.20142486,68699.0,68678.0,0.1939487]
[1771702645523,0.20142486,68698.0,68678.0,0.1939487]
[1771702645723,0.20142486,68697.0,68678.0,0.1939487]
[1771702645930,0.05760333,68700.0,68678.0,0.1939487]
[1771702646122,0.20142486,68699.0,68678.0,0.1939487]
[1771702646324,0.20142486,68698.0,68678.0,0.1939487]
[1771702646525,0.20142486,68697.0,68678.0,0.1939487]
[1771702646727,0.001,68698.0,68678.0,0.1939487]
[1771702646928,0.20145273,68697.0,68678.0,0.1939487]
[1771702647130,0.05660333,68700.0,68678.0,0.1939487]
[1771702647330,0.001,68699.0,68678.0,0.1939487]
[1771702648732,0.001,68698.0,68678.0,0.1939487]
[1771702649235,0.05660333,68700.0,68678.0,0.1939487]
[1771702649532,0.001,68699.0,68678.0,0.1939487]
[1771702649932,0.05660333,68700.0,68678.0,0.1939487]
[1771702650535,0.05760333,68700.0,68678.0,0.1939487]
[1771702651237,0.19906312,68699.0,68678.0,0.1939487]
[1771702651437,0.05760333,68700.0,68678.0,0.1939487]
[1771702651631,0.19911055,68699.0,68678.0,0.1939487]
[1771702651831,0.05760333,68700.0,68678.0,0.1939487]
[1771702652032,0.19911055,68699.0,68678.0,0.1939487]
[1771702652232,0.19917648,68698.0,68678.0,0.1939487]
[1771702652435,0.05760333,68700.0,68678.0,0.1939487]
[1771702652636,0.19917648,68699.0,68678.0,0.1939487]
[1771702652836,0.19917648,68698.0,68678.0,0.1939487]
[1771702653035,0.05760333,68700.0,68678.0,0.1939487]
[1771702653237,0.19917648,68699.0,68678.0,0.1939487]
[1771702653432,0.19917648,68698.0,68678.0,0.1939487]
[1771702653634,0.05760333,68700.0,68678.0,0.1939487]
[1771702653839,0.19924455,68699.0,68678.0,0.1939487]
[1771702654134,0.19924455,68698.0,68678.0,0.1939487]
[1771702654338,0.19924455,68697.0,68678.0,0.1939487]
[1771702654540,0.05760333,68700.0,68678.0,0.1939487]
[1771702654730,0.19934963,68699.0,68678.0,0.1939487]
[1771702654931,0.19934963,68698.0,68678.0,0.1939487]
[1771702655238,0.19934963,68697.0,68678.0,0.1939487]
[1771702655541,0.05660333,68700.0,68678.0,0.1939487]
[1771702655732,0.1993654,68699.0,68678.0,0.1939487]
[1771702655933,0.1993654,68698.0,68678.0,0.1939487]
[1771702656137,0.05660333,68700.0,68678.0,0.1939487]
[1771702656138,0.1993654,68697.0,68678.0,0.1939487]
[1771702656440,0.05660333,68700.0,68678.0,0.1939487]
[1771702656638,0.19938535,68699.0,68678.0,0.1939487]
[1771702656936,0.19938535,68698.0,68678.0,0.1939487]
[1771702657137,0.19938535,68697.0,68678.0,0.1939487]
[1771702657326,0.19938535,68696.0,68678.0,0.1939487]
[1771702657529,0.05660333,68700.0,68678.0,0.1939487]
[1771702657730,0.19941044,68699.0,68678.0,0.1939487]
[1771702657940,0.19941044,68698.0,68678.0,0.1939487]
[1771702658236,0.19941044,68697.0,68678.0,0.1939487]
[1771702658437,0.19941044,68696.0,68678.0,0.1939487]
[1771702658633,0.05660333,68700.0,68678.0,0.1939487]
[1771702658834,0.19941224,68699.0,68678.0,0.1939487]
[1771702659139,0.19941224,68698.0,68678.0,0.1939487]
[1771702659441,0.05760333,68700.0,68678.0,0.1939487]
[1771702659442,0.19941224,68697.0,68678.0,0.1939487]
[1771702659638,0.19941224,68696.0,68678.0,0.1939487]
[1771702659838,0.05660333,68700.0,68678.0,0.1939487]
[1771702660039,0.05660333,68690.0,68671.0,0.32776342]
[1771702660342,0.19941474,68689.0,68670.0,0.18307327]
[1771702662834,0.20041474,68689.0,68670.0,0.18307327]
[1771702663143,0.19941474,68688.0,68670.0,0.18307327]
[1771702663342,0.001,68689.0,68670.0,0.18307327]
[1771702663636,0.20954928,68688.0,68670.0,0.18307327]
[1771702663831,0.001,68689.0,68670.0,0.18307327]
[1771702664029,0.20954928,68688.0,68670.0,0.18307327]
[1771702664235,0.001,68689.0,68670.0,0.18307327]
[1771702664442,0.20951717,68688.0,68670.0,0.19763927]
[1771702664644,0.001,68689.0,68670.0,0.19763927]
[1771702664843,0.20951735,68688.0,68670.0,0.19763927]
[1771702665141,0.17654918,68690.0,68670.0,0.19763927]
[1771702665343,0.20949107,68689.0,68670.0,0.19763927]
[1771702665640,0.001,68689.0,68671.0,0.014566]
[1771702666045,0.001,68688.0,68671.0,0.014566]
[1771702666245,0.001,68688.0,68670.0,0.35962245]
[1771702666646,0.001,68688.0,68670.0,0.37418845]
[1771702667348,0.001,68688.0,68670.0,0.35962245]
[1771702667545,0.001,68689.0,68670.0,0.18307327]
[1771702668043,0.17654918,68680.0,68670.0,0.18307327]
[1771702669243,0.014565,68678.0,68670.0,0.18307327]
[1771702669643,0.014565,68676.0,68670.0,0.18307327]
[1771702669849,0.014565,68675.0,68670.0,0.18307327]
[1771702670050,0.014565,68674.0,68664.0,0.014568]
[1771702670252,0.014566,68672.0,68662.0,0.014568]
[1771702670464,0.014566,68672.0,68663.0,0.014568]
[1771702670861,0.014566,68672.0,68663.0,0.19764127]
[1771702671265,0.014566,68672.0,68664.0,0.014568]
[1771702673561,0.014566,68672.0,68663.0,0.19764127]
[1771702673966,0.014566,68670.0,68663.0,0.18307327]
[1771702674159,0.014565,68676.0,68663.0,0.15439227]
[1771702674160,0.014567,68669.0,68663.0,0.15439227]
[1771702674359,0.17654918,68673.0,68656.0,0.014569]
[1771702674555,0.17654918,68670.0,68655.0,0.014569]
[1771702675964,0.17754918,68670.0,68655.0,0.014569]
[1771702676170,0.014568,68664.0,68655.0,0.014569]
[1771702677964,0.014568,68664.0,68655.0,0.029138]
[1771702678367,0.014568,68664.0,68655.0,0.014569]
[1771702680064,0.014568,68663.0,68653.0,0.18307327]
[1771702680272,0.014568,68661.0,68652.0,0.01457]
[1771702680566,0.029136,68661.0,68652.0,0.01457]
[1771702680870,0.014568,68661.0,68652.0,0.01457]
[1771702682272,0.014568,68662.0,68653.0,0.01457]
[1771702682973,0.19111518,68670.0,68652.0,0.01457]
[1771702683175,0.014567,68665.0,68656.0,0.014569]
[1771702684266,0.014568,68664.0,68656.0,0.014569]
[1771702684976,0.014568,68664.0,68655.0,0.014569]
[1771702685571,0.014568,68664.0,68650.0,0.19111918]
[1771702686168,0.014568,68661.0,68651.0,0.01457]
[1771702686570,0.014568,68661.0,68652.0,0.01457]
[1771702688777,0.014568,68660.0,68651.0,0.01457]
[1771702690774,0.014569,68659.0,68650.0,0.01457]
[1771702691883,0.014569,68659.0,68650.0,0.02914]
[1771702692377,0.014569,68659.0,68650.0,0.01457]
[1771702695079,0.014569,68657.0,68649.0,0.17654918]
[1771702695279,0.014569,68658.0,68649.0,0.19112018]
[1771702695683,0.014569,68658.0,68650.0,0.014571]
[1771702695982,0.014569,68659.0,68650.0,0.014571]
[1771702696183,0.014569,68659.0,68650.0,0.029141]
[1771702696482,0.014569,68659.0,68650.0,0.01457]
[1771702701880,0.014569,68658.0,68649.0,0.014571]
[1771702702780,0.014569,68659.0,68650.0,0.01457]
[1771702703689,0.014569,68658.0,68649.0,0.014571]
[1771702705391,0.014569,68658.0,68641.0,0.4518589]
[1771702705392,0.01457,68651.0,68636.0,0.18652159]
[1771702705692,0.014571,68650.0,68641.0,0.014572]
[1771702705891,0.014571,68649.0,68640.0,0.014573]
[1771702706282,0.014571,68648.0,68640.0,0.014573]
[1771702706885,0.014571,68646.0,68637.0,0.014573]
[1771702707086,0.014571,68647.0,68638.0,0.014573]
[1771702707387,0.014571,68647.0,68639.0,0.014573]
[1771702708186,0.014571,68646.0,68638.0,0.014573]
[1771702708390,0.014571,68647.0,68638.0,0.014573]
[1771702708891,0.014571,68646.0,68638.0,0.014573]
[1771702709483,0.014571,68647.0,68638.0,0.014573]
[1771702709988,0.014571,68647.0,68639.0,0.014573]
[1771702710196,0.014572,68645.0,68636.0,0.014573]
[1771702711294,0.014572,68645.0,68637.0,0.014573]
[1771702711790,0.014572,68645.0,68635.0,0.014574]
[1771702712007,0.014571,68647.0,68634.0,0.014574]
[1771702712189,0.17654918,68650.0,68634.0,0.014574]
[1771702712190,0.18250641,68649.0,68634.0,0.014574]
[1771702712895,0.014572,68642.0,68634.0,0.014574]
[1771702713483,0.014572,68642.0,68635.0,0.014574]
[1771702714296,0.014572,68642.0,68633.0,0.014574]
[1771702714495,0.014573,68641.0,68631.0,0.01530253]
[1771702714697,0.014573,68641.0,68633.0,0.014574]
[1771702715399,0.014572,68642.0,68631.0,0.00072853]
[1771702715592,0.014572,68642.0,68634.0,0.014574]
[1771702718098,0.014573,68641.0,68633.0,0.014574]
[1771702718299,0.014572,68642.0,68634.0,0.014574]
[1771702719097,0.014572,68641.0,68634.0,0.014574]
[1771702719289,0.014572,68641.0,68631.0,0.01530253]
[1771702719290,0.014572,68641.0,68633.0,0.014574]
[1771702719498,0.014572,68641.0,68633.0,0.029148]
[1771702719694,0.014572,68642.0,68634.0,0.014574]
[1771702721095,0.014572,68641.0,68634.0,0.014574]
[1771702721402,0.19112118,68644.0,68631.0,0.00072853]
[1771702721593,0.19112218,68641.0,68633.0,0.014574]
[1771702722298,0.19112218,68641.0,68633.0,0.029148]
[1771702722499,0.19112218,68641.0,68633.0,0.014574]
[1771702723294,0.014573,68640.0,68633.0,0.014574]
[1771702729108,0.029146,68640.0,68632.0,0.014574]
[1771702729299,0.014573,68640.0,68632.0,0.014574]
[1771702729501,0.014572,68643.0,68633.0,0.014574]
[1771702729810,0.014573,68641.0,68633.0,0.014574]
[1771702730299,0.014573,68640.0,68632.0,0.014574]
[1771702731103,0.014573,68639.0,68632.0,0.014574]
[1771702731607,0.014573,68639.0,68631.0,0.01530253]
[1771702732406,0.014573,68639.0,68632.0,0.014574]
[1771702732606,0.014573,68640.0,68632.0,0.014574]
[1771702732800,0.014573,68640.0,68633.0,0.014574]
[1771702733000,0.014573,68640.0,68631.0,0.01530253]
[1771702733202,0.014573,68639.0,68631.0,0.01530253]
[1771702733702,0.014573,68641.0,68632.0,0.014574]
[1771702733904,0.014573,68641.0,68634.0,0.014574]
[1771702734103,0.014572,68642.0,68634.0,0.014574]
[1771702734507,0.029144,68642.0,68634.0,0.014574]
[1771702734707,0.014572,68642.0,68634.0,0.014574]
[1771702735706,0.014572,68641.0,68634.0,0.014574]
[1771702736107,0.014572,68642.0,68634.0,0.014574]
[1771702737802,0.014571,68646.0,68633.0,0.014574]
[1771702737803,0.014572,68643.0,68633.0,0.014574]
[1771702738408,0.014572,68643.0,68631.0,0.00072853]
[1771702738409,0.014572,68642.0,68634.0,0.014574]
[1771702739711,0.014572,68642.0,68634.0,0.029148]
[1771702740502,0.014572,68643.0,68635.0,0.014574]
[1771702744215,0.014572,68642.0,68635.0,0.014574]
[1771702744513,0.014572,68641.0,68633.0,0.014574]
[1771702745614,0.014572,68642.0,68634.0,0.014574]
[1771702745815,0.014572,68642.0,68635.0,0.014574]
[1771702747618,0.014572,68643.0,68635.0,0.014574]
[1771702748818,0.014572,68643.0,68635.0,0.029148]
[1771702749220,0.014572,68643.0,68636.0,0.014573]
[1771702750126,0.014571,68648.0,68636.0,0.014573]
[1771702750327,0.21889189,68647.0,68636.0,0.014573]
[1771702750523,0.014571,68648.0,68636.0,0.014573]
[1771702751023,0.014572,68644.0,68636.0,0.014573]
[1771702752124,0.029144,68644.0,68636.0,0.014573]
[1771702752331,0.014572,68643.0,68635.0,0.014574]
[1771702752530,0.014572,68642.0,68635.0,0.014574]
[1771702754729,0.014572,68644.0,68635.0,0.014574]
[1771702754933,0.014572,68644.0,68636.0,0.014573]
[1771702757137,0.014572,68643.0,68636.0,0.014573]
[1771702758034,0.014572,68643.0,68637.0,0.00092]
[1771702758337,0.014572,68643.0,68636.0,0.014573]
[1771702759839,0.014572,68643.0,68635.0,0.014574]
[1771702761936,0.014572,68643.0,68636.0,0.014573]
[1771702763341,0.014572,68643.0,68635.0,0.014574]
[1771702764035,0.014572,68643.0,68637.0,0.00088]
[1771702764337,0.014572,68643.0,68635.0,0.014574]
[1771702765041,0.014572,68642.0,68635.0,0.014574]
[1771702766443,0.014572,68643.0,68635.0,0.014574]
[1771702766743,0.014572,68643.0,68636.0,0.014573]
[1771702766940,0.029144,68643.0,68635.0,0.014574]
[1771702767744,0.014572,68643.0,68635.0,0.029148]
[1771702768244,0.014572,68643.0,68635.0,0.014574]
[1771702769745,0.014572,68642.0,68635.0,0.014574]
[1771702770046,0.014572,68642.0,68636.0,0.00084]
[1771702770249,0.014572,68642.0,68635.0,0.014574]
[1771702771540,0.014572,68643.0,68635.0,0.014574]
[1771702771742,0.05665938,68650.0,68635.0,0.014574]
[1771702771942,0.014572,68642.0,68635.0,0.014574]
[1771702773047,0.014572,68642.0,68636.0,0.00092]
[1771702773239,0.014572,68642.0,68635.0,0.014574]
[1771702774049,0.014572,68642.0,68634.0,0.014574]
[1771702774849,0.029144,68642.0,68634.0,0.014574]
[1771702775050,0.014572,68641.0,68634.0,0.014574]
[1771702775737,0.029146,68640.0,68632.0,0.014574]
[1771702775947,0.014573,68639.0,68632.0,0.014574]
[1771702783460,0.014573,68639.0,68631.0,0.01530253]
[1771702785758,0.014573,68639.0,68631.0,0.02987653]
[1771702785964,0.014573,68640.0,68632.0,0.014574]
[1771702792258,0.014573,68641.0,68632.0,0.014574]
[1771702792454,0.014571,68647.0,68635.0,0.014574]
[1771702792660,0.014569,68655.0,68638.0,0.014573]
[1771702792854,0.21911259,68654.0,68640.0,0.17677204]
[1771702793164,0.014571,68646.0,68640.0,0.17677204]
[1771702793354,0.014571,68648.0,68640.0,0.014573]
[1771702793552,0.014569,68656.0,68646.0,0.014571]
[1771702793759,0.01457,68652.0,68646.0,0.014571]
[1771702793961,0.167818,68666.0,68641.0,0.16134052]
[1771702794159,0.2190939,68665.0,68650.0,0.19134204]
[1771702794464,0.2190939,68664.0,68650.0,0.01457]
[1771702794665,0.2190939,68663.0,68650.0,0.01457]
[1771702794864,0.2190939,68662.0,68650.0,0.01457]
[1771702795160,0.167818,68666.0,68650.0,0.01457]
[1771702795363,0.21785229,68665.0,68650.0,0.01457]
[1771702795567,0.21785229,68664.0,68653.0,0.01457]
[1771702795765,0.21785229,68663.0,68653.0,0.01457]
[1771702795966,0.34459004,68670.0,68652.0,0.01457]
[1771702796166,0.38567002,68669.0,68652.0,0.01457]
[1771702796368,0.001,68666.0,68652.0,0.01457]
[1771702796567,0.21785202,68665.0,68652.0,0.01457]
[1771702796766,0.21785202,68664.0,68652.0,0.01457]
[1771702796967,0.001,68666.0,68652.0,0.01457]
[1771702797162,0.21787884,68665.0,68652.0,0.01457]
[1771702797361,0.001,68666.0,68652.0,0.01457]
[1771702797562,0.21782199,68665.0,68652.0,0.01457]
[1771702797762,0.21782199,68664.0,68652.0,0.01457]
[1771702797962,0.21782199,68663.0,68652.0,0.01457]
[1771702798160,0.167818,68669.0,68652.0,0.01457]
[1771702798369,0.21777637,68668.0,68652.0,0.01457]
[1771702798560,0.21777637,68667.0,68652.0,0.01457]
[1771702798762,0.21777637,68666.0,68658.0,0.014569]
[1771702798963,0.167818,68677.0,68658.0,0.014569]
[1771702799166,0.38557028,68676.0,68652.0,0.01457]
[1771702799472,0.001,68668.0,68658.0,0.014569]
[1771702800968,0.17677204,68670.0,68658.0,0.014569]
[1771702804069,0.17677204,68670.0,68656.0,0.014569]
[1771702805062,0.17677204,68670.0,68657.0,0.014569]
[1771702806068,0.17677204,68670.0,68664.0,0.00088]
[1771702806274,0.34459004,68674.0,68657.0,0.014569]
[1771702806475,0.17677204,68670.0,68657.0,0.014569]
[1771702808972,0.17677204,68670.0,68656.0,0.014569]
[1771702811679,0.17677204,68670.0,68654.0,0.014569]
[1771702811877,0.17677204,68670.0,68656.0,0.014569]
[1771702823192,0.21791785,68669.0,68656.0,0.014569]
[1771702823395,0.17677204,68670.0,68656.0,0.014569]
[1771702823593,0.21791765,68669.0,68656.0,0.014569]
[1771702823795,0.17677204,68670.0,68656.0,0.014569]
[1771702823993,0.21791765,68669.0,68656.0,0.014569]
[1771702824195,0.17677204,68670.0,68656.0,0.014569]
[1771702824392,0.21794532,68669.0,68656.0,0.014569]
[1771702824587,0.17677204,68670.0,68657.0,0.014569]
[1771702824794,0.21794512,68669.0,68656.0,0.014569]
[1771702824991,0.17677204,68670.0,68656.0,0.014569]
[1771702825291,0.15859083,68668.0,68650.0,0.01457]
[1771702825594,0.15859083,68668.0,68652.0,0.01457]
[1771702826395,0.15859083,68668.0,68652.0,0.02914]
[1771702826595,0.15859083,68668.0,68652.0,0.01457]
[1771702827294,0.21793795,68667.0,68652.0,0.01457]
[1771702827496,0.21793795,68666.0,68652.0,0.01457]
[1771702827686,0.21793795,68666.0,68653.0,0.01457]
[1771702829294,0.21793795,68666.0,68652.0,0.01457]
[1771702829795,0.21793795,68666.0,68651.0,0.01457]
[1771702830088,0.37652878,68666.0,68660.0,0.0008]
[1771702830294,0.21793795,68665.0,68651.0,0.01457]
[1771702830697,0.21793795,68665.0,68653.0,0.01457]
[1771702834692,0.21793795,68665.0,68651.0,0.01457]
[1771702834900,0.21793795,68665.0,68656.0,0.014569]
[1771702835198,0.21793795,68665.0,68655.0,0.014569]
[1771702836998,0.21793795,68665.0,68654.0,0.01457]
[1771702837503,0.15859083,68666.0,68654.0,0.01457]
[1771702841403,0.15859083,68666.0,68655.0,0.014569]
[1771702848001,0.15859083,68666.0,68654.0,0.01457]
[1771702850010,0.15859083,68666.0,68655.0,0.014569]
[1771702850201,0.15859083,68666.0,68656.0,0.014569]
[1771702850406,0.1546661,68679.0,68656.0,0.014569]
[1771702850607,0.1546661,68677.0,68656.0,0.014569]
[1771702850806,0.05661168,68680.0,68656.0,0.014569]
[1771702850807,0.1546661,68675.0,68656.0,0.014569]
[1771702851106,0.1546661,68673.0,68656.0,0.014569]
[1771702851311,0.1546661,68671.0,68656.0,0.014569]
[1771702851514,0.21796203,68670.0,68656.0,0.014569]
[1771702851809,0.21796203,68669.0,68656.0,0.014569]
[1771702852010,0.21796203,68668.0,68656.0,0.014569]
[1771702852211,0.21796203,68667.0,68656.0,0.014569]
[1771702852410,0.1546661,68668.0,68656.0,0.014569]
[1771702852608,0.21795868,68667.0,68655.0,0.014569]
[1771702852798,0.1546661,68668.0,68655.0,0.014569]
[1771702853003,0.21795942,68667.0,68655.0,0.014569]
[1771702853205,0.1546661,68668.0,68655.0,0.014569]
[1771702853504,0.21796063,68667.0,68655.0,0.014569]
[1771702853705,0.1546661,68668.0,68655.0,0.014569]
[1771702853906,0.21796132,68667.0,68655.0,0.014569]
[1771702854102,0.1546661,68668.0,68661.0,0.014568]